Cogmind - Beta 15 @@@ ROGUE MODE // 2025.08.04 @ 10:17:39 Player: H3-RMN Result: Destroyed by 8R-AWN with 8R-AWN's Boregun Performance ------------- Evolutions (1) 500 Regions Visited (5) 1000 Robots Destroyed (93) 465 Value Destroyed (2107) 2107 Prototype IDs (29) 580 Alien Tech Used (0) 0 Bonus (-257) -257 TOTAL SCORE: 4395 Bonus ------- High Alert Combat Kills 52 Aligned with FarCom 300 Friendly Fire -609 Cogmind --------- Core Integrity 0/400 Matter 290/300 Energy 75/100 System Corruption 5% Temperature Cool (0) Movement Core (550) Ox10 Location -9/Exiles Parts ------- > --- POWER (1) -------- (None) > --- PROPULSION (3) --- (None) > --- UTILITY (3) ------ Large Storage Unit > --- WEAPON (2) ------- Guided Plasma Cannon Scythe > --- INVENTORY (15) --- Cooling System Huge Storage Unit Experimental Sensor Array Hacking Suite Improved EM Shotgun Minigun Minigun Minigun Minigun Grenade Launcher Grenade Launcher Peak State ------------ > --- POWER ------------ Heavy Ion Engine > --- PROPULSION ------- Aluminum Leg Improved Aluminum Leg Improved Flight Unit > --- UTILITY ---------- Large Storage Unit Medium Armor Plating Hacking Suite > --- WEAPON ----------- Improved EM Shotgun Improved EM Shotgun > --- INVENTORY -------- Aluminum Leg Cooling System Large Matter Pod Large Matter Pod Experimental Sensor Array Heavy Assault Rifle Minigun Minigun Minigun Minigun EMP Blaster Grenade Launcher Grenade Launcher Scythe Scythe [Rating: 24] Favorites ----------- Power Heavy Ion Engine Engine Heavy Ion Engine Power Core Light Nuclear Core Propulsion Aluminum Leg Treads Light Treads Leg Aluminum Leg Flight Unit Improved Flight Unit Utility Large Storage Unit Device Seismic Detector Storage Large Storage Unit Processor Transport Network Coupler Hackware Hacking Suite Protection Medium Armor Plating Weapon Improved EM Shotgun Energy Gun Improved EM Shotgun Energy Cannon Guided Plasma Cannon Ballistic Gun Light Assault Rifle Ballistic Cannon Light Cannon Launcher Grenade Launcher Special Weapon Mining Laser Slashing Weapon Scythe Build | -11 -10 -10 -9 -9 -9 ------- Run | Yrd Mat Min Mat Min Exi Slots Evolved 2 | . . . 2 . . Power . | . . . . . . Propulsion 1 | . . . 1 . . Utility 1 | . . . 1 . . Weapon . | . . . . . . Parts Attached 57 | 7 11 9 23 3 4 Power 7 | 1 2 2 1 1 . Engine 5 | 1 1 1 1 1 . Core 2 | . 1 1 . . . Reactor . | . . . . . . Propulsion 17 | 2 4 4 5 1 1 Treads 1 | . . . . . 1 Leg 15 | 2 4 4 4 1 . Wheel . | . . . . . . Hover . | . . . . . . Flight 1 | . . . 1 . . Utility 13 | 2 2 . 9 . . Device 4 | 1 . . 3 . . Storage 2 | 1 1 . . . . Processor 1 | . . . 1 . . Hackware 1 | . . . 1 . . Protection 5 | . 1 . 4 . . Artifact . | . . . . . . Weapon 20 | 2 3 3 8 1 3 Energy Gun 5 | . 1 . 4 . . Energy Cannon 2 | . . . 1 . 1 Ballistic Gun 7 | 2 . 3 2 . . Ballistic Cannon 1 | . 1 . . . . Launcher 2 | . . . 1 1 . Special Weapon 1 | . 1 . . . . Impact Weapon . | . . . . . . Slashing Weapon 2 | . . . . . 2 Piercing Weapon . | . . . . . . Special Melee Weapon . | . . . . . . Unidentified Prototypes 5 | . . . 5 . . Parts Lost 19 | . 4 3 3 1 8 Power 6 | . 2 2 . 1 1 Propulsion 5 | . . 1 . . 4 Utility 5 | . 1 . 2 . 2 Weapon 3 | . 1 . 1 . 1 Highest Loss Streak 8 | . 1 2 1 1 8 To Critical Strikes 4 | . . . . . 4 Average Backups 14 | 2 11 14 14 15 14 Power . | . . . . . . Propulsion 1 | . 1 1 . 1 . Utility 5 | . 4 6 5 7 5 Weapon 7 | 1 4 6 8 7 7 Tool/Special . | . . . . . . Unused Backups 18 | . . 1 8 . 9 Power . | . . . . . . Propulsion . | . . . . . . Utility 9 | . . . 3 . 6 Weapon 9 | . . 1 5 . 3 Tool/Special . | . . . . . . Average Slot Usage (%) 96 | . 99 93 97 97 94 Engine 8 | . 11 7 7 8 10 Core 2 | . 2 . 3 . . Leg 30 | . 28 27 31 33 29 Device 5 | . 12 14 3 . . Storage 11 | . 14 14 11 11 11 Hackware 5 | . . . 9 11 4 Protection 7 | . . . 9 11 15 Energy Gun 9 | . 6 . 15 11 . Ballistic Gun 9 | . 19 19 6 6 . Ballistic Cannon 1 | . 1 8 . . . Slashing Weapon 2 | . . . . . 20 Peak Build Rating 24 | 7 10 12 24 22 20 Average Rating 16 | 5 8 8 20 19 18 On Entrance 11 | . 7 10 12 22 18 Naked Turns . | . . . . . . Heaviest Build 41 | 13 30 31 41 41 37 Greatest Support 33 | 20 20 20 33 33 33 Greatest Overweight (x) 2 | . 1 2 1 1 1 Average Overweight (x) . | . . 1 1 . 1 Largest Inventory Capacity 15 | 8 15 15 15 15 15 Average Capacity 14 | 7 13 15 15 15 15 Most Carried 15 | 3 15 15 15 15 15 Average Carried 14 | 2 11 14 14 15 14 Final Capacity 15 | 8 15 15 15 15 15 Final Carried 15 | 3 15 15 15 15 11 Class Distribution -------------------- 60% | Scavenger-Mutant 39% | Mutant Dominant Class ---------------- Mutant | -10/Materials Scavenger-Mutant | -10/Mines Scavenger-Mutant | -9/Materials Mutant | -9/Mines Scavenger-Mutant | -9/Exiles Resources | -11 -10 -10 -9 -9 -9 ----------- Run | Yrd Mat Min Mat Min Exi Matter Collected 2074 | 288 795 214 501 91 185 Remotely . | . . . . . . Salvage Created 3342 | 126 772 298 1930 205 11 Parts 219 | 8 40 20 132 19 . Haulers Intercepted 5 | . . . 5 . . Recyclers Shooed 4 | 1 1 . 2 . . Parts Field Recycled . | . . . . . . Retrieved Matter . | . . . . . . Parts Self-Destructed . | . . . . . . Prevented . | . . . . . . Kills | -11 -10 -10 -9 -9 -9 ------- Run | Yrd Mat Min Mat Min Exi Combat Hostiles Destroyed 68 | . 12 9 34 9 4 Melee 1 | . . . . . 1 Guns 48 | . 10 6 29 3 . Cannons 5 | . 2 3 . . . AOE 14 | . . . 5 6 3 Classes Destroyed 12 | 2 4 2 3 . 1 Worker 6 | . 5 . 1 . . Builder 3 | . . . 3 . . Tunneler 2 | 2 . . . . . Hauler 5 | . . . 5 . . Recycler 4 | 1 1 . 2 . . Operator 3 | . 1 . 2 . . Watcher 6 | . 2 . 4 . . Swarmer 22 | . . 3 13 6 . Grunt 29 | . 12 4 11 2 . Brawler 2 | . . . 1 1 . Sentry 11 | . . 2 9 . . Assembled 7 | . . . . . 7 Best Kill Streak 6 | 2 3 3 6 3 4 Combat Bots Only 6 | . 3 3 6 3 4 Max Kills in Single Turn 3 | 1 1 1 3 3 3 Gunslinging 1 | . . . . 1 . Exploded 3 | . . . 2 3 3 Melee 1 | . . . . . 1 Uniques/NPCs Destroyed . | . . . . . . Combat | -11 -10 -10 -9 -9 -9 -------- Run | Yrd Mat Min Mat Min Exi Hostile Shots Fired 337 | . 82 63 102 24 66 Missed 85 | . 24 21 22 7 11 Hits 252 | . 58 42 80 17 55 Melee 4 | . . . . 1 3 Projectile 248 | . 58 42 80 16 52 Critical Strikes 29 | . 1 3 2 . 23 Damage Taken 3471 | . 764 476 1067 197 967 Core 656 | . 172 72 99 12 301 Absorbed by Shields . | . . . . . . Regen/Repaired (Parts) 29 | . 18 . 11 . . Core Remaining (%) 51 | 100 . 2 . . . Volleys Fired 216 | 9 69 27 93 15 3 Largest 2 | 2 2 2 2 2 2 Hottest 120 | 40 100 50 90 70 120 Shots Fired 422 | 18 135 54 182 28 5 Gun 386 | 18 130 31 181 26 . Cannon 26 | . 2 23 . . 1 Launcher 7 | . . . 1 2 4 Special 3 | . 3 . . . . Kinetic 243 | 18 79 54 79 13 . Thermal 57 | . 56 . . . 1 Explosive 7 | . . . 1 2 4 Electromagnetic 115 | . . . 102 13 . Robot Hit Streak 15 | 3 7 6 12 15 2 Robot Miss Streak 4 | 1 3 2 4 2 . Penetration Max . | . . . . . . Secondary Targets 4 | . 1 . 2 1 . Max Gunslinging Chain 1 | . 1 . 1 1 . Shots Hit Robots 296 | 11 84 36 125 21 19 Core Hits 171 | 7 44 17 75 13 15 Critical Kills 1 | 1 . . . . . Critical Parts Destroyed 2 | . 1 . 1 . . Critical Strikes 8 | 1 5 . 1 . 1 Burn 4 | . 4 . . . . Destroy 3 | 1 1 . 1 . . Sever 1 | . . . . . 1 Melee Attacks 31 | . . . . . 31 Impact . | . . . . . . Slashing 31 | . . . . . 31 Piercing . | . . . . . . Sneak Attacks . | . . . . . . Combat Hostiles . | . . . . . . Follow-up Attacks 4 | . . . . . 4 Damage Inflicted 5609 | 114 868 485 2569 531 1042 Guns 3461 | 114 833 235 1972 307 . Cannons 288 | . 35 250 . . 3 Explosions 1275 | . . . 583 224 468 Melee 571 | . . . . . 571 Ramming 14 | . . . 14 . . Kinetic 1750 | 114 416 485 612 123 . Thermal 913 | . 452 . 458 . 3 Explosive 817 | . . . 125 224 468 Electromagnetic 1544 | . . . 1360 184 . Impact . | . . . . . . Slashing 571 | . . . . . 571 Piercing . | . . . . . . Highest Corruption 5 | . . . . 1 5 Average Corruption 1 | . . . . 1 1 Corruption Purged . | . . . . . . Corruption Blocked . | . . . . . . Effects 8 | . . . . 2 6 Message Errors 2 | . . . . . 2 Matter Fused 4 | . . . . 2 2 Heat Flow Errors 1 | . . . . . 1 Energy Discharges 1 | . . . . . 1 Overload Shots . | . . . . . . Overflow Damage 56 | . . 4 37 . 15 Projectiles 4 | . . 4 . . . Explosions 52 | . . . 37 . 15 Melee . | . . . . . . Knockbacks . | . . . . . . Impact . | . . . . . . Kinetic . | . . . . . . Secondary . | . . . . . . Self-Inflicted Damage 149 | . . . 129 20 . Shots 6 | . . . 5 1 . Rammed . | . . . . . . Targets Rammed 1 | . . . 1 . . Kicked 1 | . . . 1 . . Crushed . | . . . . . . Highest Temperature 244 | . 244 37 120 145 117 Average Temperature 51 | . 75 15 33 65 35 Received Heat Transfer 936 | . 444 153 297 42 . Siege Activations . | . . . . . . Martial Activations . | . . . . . . Shielding Activations . | . . . . . . Robots Disrupted . | . . . . . . Combat Hostiles . | . . . . . . Robots Corrupted . | . . . . . . Combat Hostiles . | . . . . . . Parts Fried 5 | . . . 5 . . Impact Corruptions . | . . . . . . Robots Melted . | . . . . . . Combat Hostiles . | . . . . . . Parts Melted 3 | . 2 . 1 . . Heat Transferred 2161 | . 1591 . 550 . 20 Parts Sabotaged . | . . . . . . Parts Stolen . | . . . . . . Parts Stripped . | . . . . . . Power Chain Reactions 7 | . . . 7 . . Alert | -11 -10 -10 -9 -9 -9 ------- Run | Yrd Mat Min Mat Min Exi Maximum Alert Level 2 | . . . 2 1 . Low Security (%) 72 | 100 100 100 51 85 . Level 1 12 | . . . 20 14 . Level 2 15 | . . . 27 . . Level 3 . | . . . . . . Level 4 . | . . . . . . Level 5 . | . . . . . . High Security . | . . . . . . Max Security . | . . . . . . Peak Influence 617 | 5 174 108 617 233 . Initial 108 | . . 58 14 108 . Average 161 | . 68 30 239 172 . Influence Increases 2003 | 15 402 240 1081 265 . Destroy 0b10 Robot/C 1280 | . 240 180 680 180 . Destroy 0b10 Robot/NC 145 | 15 45 . 85 . . Destroy Leader 302 | . 64 30 178 30 . Successful Hack 69 | . 22 . 47 . . Select Force Hacks 30 | . 30 . . . . Disable Machine 45 | . . . 15 30 . Destroy Structure 57 | . 1 . 31 25 . Lose Combat Pursuer 75 | . . 30 45 . . Influence Decreases 2003 | 15 252 352 840 395 149 Entered New Map 436 | . . 92 24 171 149 Time Decay 1177 | 15 222 240 486 214 . Lost Part 90 | . 30 20 30 10 . Purge Threat 300 | . . . 300 . . Squads Dispatched 4 | . 2 . 2 . . Investigation 1 | . 1 . . . . Extermination . | . . . . . . Reinforcement 3 | . 1 . 2 . . Assault . | . . . . . . Garrison . | . . . . . . Intercept . | . . . . . . Searches Triggered . | . . . . . . Construction Impeded . | . . . . . . Haulers Reinforced . | . . . . . . Active Scanning Responses . | . . . . . . Cargo Convoy Interrupts . | . . . . . . Stealth | -11 -10 -10 -9 -9 -9 --------- Run | Yrd Mat Min Mat Min Exi Distress Signals 5 | . . . 5 . . Communications Jammed . | . . . . . . Distress Signals . | . . . . . . Times Spotted 88 | . 17 9 48 9 5 Peak Tracking Total 6 | . 3 4 6 3 6 Tactical Retreats 3 | . . 1 2 . . Traps | -11 -10 -10 -9 -9 -9 ------- Run | Yrd Mat Min Mat Min Exi Traps Triggered . | . . . . . . Indirectly . | . . . . . . Trap Hack Attempts . | . . . . . . Triggered . | . . . . . . Disarmed . | . . . . . . Reprogrammed . | . . . . . . Reused . | . . . . . . Traps Extracted . | . . . . . . Installed . | . . . . . . Triggered . | . . . . . . Machines | -11 -10 -10 -9 -9 -9 ---------- Run | Yrd Mat Min Mat Min Exi Machines Disabled 7 | . . 1 1 2 3 Max in Single Turn 2 | . . 1 1 1 2 Machines Repaired . | . . . . . . Machines Dismantled . | . . . . . . Machines Sabotaged . | . . . . . . Overloaded Fab Kills . | . . . . . . Hacking | -11 -10 -10 -9 -9 -9 --------- Run | Yrd Mat Min Mat Min Exi Machines Accessed 21 | . 6 . 13 . 2 Terminals 13 | . 4 . 9 . . Fabricators . | . . . . . . Repair Stations 2 | . 1 . 1 . . Recycling Units 2 | . 1 . 1 . . Scanalyzers 2 | . . . 2 . . Garrison Access . | . . . . . . Total Hacks 72 | . 22 . 45 . 5 Successful 45 | . 11 . 29 . 5 Failed 25 | . 10 . 15 . . Catastrophic 2 | . 1 . 1 . . Database Lockouts 2 | . 1 . 1 . . Manual 44 | . 16 . 27 . 1 Terminals 47 | . 16 . 31 . . Fabricators . | . . . . . . Repair Stations 4 | . 2 . 2 . . Recycling Units 5 | . 4 . 1 . . Scanalyzers 11 | . . . 11 . . Garrison Access . | . . . . . . Terminal Hacks 19 | . 5 . 9 . 5 Record 4 | . . . . . 4 Part Schematic 3 | . 2 . 1 . . Robot Schematic 1 | . 1 . . . . Robot Analysis 2 | . 1 . 1 . . Branch Access Points 1 | . . . 1 . . Emergency Access Points 1 | . . . 1 . . Terminal Index 1 | . . . 1 . . Unreport Threat 2 | . . . 2 . . Registered Components 1 | . . . 1 . . Zone Layout 2 | . 1 . 1 . . Proto ID Catalog 1 | . . . . . 1 Fabricator Hacks . | . . . . . . Repair Station Hacks 4 | . 2 . 2 . . Scan Component 2 | . 1 . 1 . . Repair 2 | . 1 . 1 . . Recycling Unit Hacks 3 | . 2 . 1 . . Report Inventory 2 | . 1 . 1 . . Retrieve Components 1 | . 1 . . . . Scanalyzer 7 | . . . 7 . . Insert Component 3 | . . . 3 . . Analyze 4 | . . . 4 . . Garrison Access Hacks . | . . . . . . Unauthorized Hacks 12 | . 2 . 10 . . Terminals 11 | . 1 . 10 . . Track 1 | . . . 1 . . Botnet 3 | . 1 . 2 . . Operators 2 | . . . 2 . . Skim 5 | . . . 5 . . Fabricators . | . . . . . . Repair Stations . | . . . . . . Recycling Units 1 | . 1 . . . . Tunnel 1 | . 1 . . . . Scanalyzers . | . . . . . . Garrison Access . | . . . . . . Data Cores Recovered . | . . . . . . Used . | . . . . . . Hacking Detections 15 | . 4 . 11 . . Full Trace Events 3 | . 1 . 2 . . Feedback Events . | . . . . . . Feedback Blocked . | . . . . . . Robot Schematics Acquired 1 | . 1 . . . . Robots Built . | . . . . . . Authchips . | . . . . . . Time . | . . . . . . Total Robot Build Rating . | . . . . . . Part Schematics Acquired 3 | . 2 . 1 . . Parts Built . | . . . . . . Authchips . | . . . . . . Time . | . . . . . . Total Part Build Rating . | . . . . . . Parts Repaired 2 | . 1 . 1 . . Time 162 | . 26 . 136 . . Parts Recycled . | . . . . . . Recycled Matter . | . . . . . . Retrieved Matter . | . . . . . . Retrieved Components 7 | . 7 . . . . Parts Scanalyzed 1 | . . . 1 . . Part Schematics Acquired . | . . . . . . Parts Damaged 1 | . . . 1 . . Bothacking | -11 -10 -10 -9 -9 -9 ------------ Run | Yrd Mat Min Mat Min Exi Used RIF Installer . | . . . . . . Robots Hacked . | . . . . . . Non-combat . | . . . . . . Combat . | . . . . . . Robot Hacks Applied . | . . . . . . Relay Couplers Released . | . . . . . . Fabnet Peak Effective % . | . . . . . . Robots Rewired . | . . . . . . Allies Hacked . | . . . . . . Hacks Repelled . | . . . . . . Allies | -11 -10 -10 -9 -9 -9 -------- Run | Yrd Mat Min Mat Min Exi Total Allies . | . . . . . . Largest Group . | . . . . . . Highest-Rated Group . | . . . . . . Highest-Rated Ally . | . . . . . . Total Orders . | . . . . . . Ally Attacks . | . . . . . . Total Damage . | . . . . . . Kills . | . . . . . . Allies Corrupted . | . . . . . . Allies Melted . | . . . . . . Intel | -11 -10 -10 -9 -9 -9 ------- Run | Yrd Mat Min Mat Min Exi Active Infowar (turns) 1804 | 17 712 970 105 . . Seismic 1745 | 17 712 970 46 . . T.N.C. 59 | . . . 59 . . Robot Analysis Total 2 | . 1 . 1 . . Derelict Logs Recovered 1 | . . 1 . . . Drone Launches . | . . . . . . Drone Recoveries . | . . . . . . Exploration | -11 -10 -10 -9 -9 -9 ------------- Run | Yrd Mat Min Mat Min Exi Turns Passed 5796 | 116 786 970 2739 451 734 Spaces Moved 2544 | 60 308 447 1150 243 336 Core 7 | 7 . . . . . Treads 3 | . . . . . 3 Legs 2534 | 53 308 447 1150 243 333 Wheels . | . . . . . . Hover . | . . . . . . Flight . | . . . . . . Fastest Speed 50 | 50 120 190 190 120 190 Average Speed 183 | 111 169 190 190 165 190 Slowest Speed 260 | 120 190 260 190 190 240 Overloaded Moves . | . . . . . . Propulsion Burnouts . | . . . . . . Robots Hopped . | . . . . . . Potential Cave-ins . | . . . . . . Cave-ins Triggered . | . . . . . . Exploration Rate (%) 62 | 4 58 92 92 66 60 Regions Visited 5 Branch Regions 3 Pre-discovered Areas 4 | . 1 . 2 . 1 Known Exits Taken 1 | . . . 1 . . Unknown Exits Taken 4 | 1 1 1 . 1 . Scrap Searched 1 | . . 1 . . . Spaces Dug 19 | . 1 . 9 9 . Terrain Destroyed 67 | . 1 . 32 26 8 Melee . | . . . . . . Projectile 1 | . 1 . . . . AOE 66 | . . . 32 26 8 Terrain Rammed . | . . . . . . Walls Destroyed . | . . . . . . Machines Disabled . | . . . . . . Actions | -11 -10 -10 -9 -9 -9 --------- Run | Yrd Mat Min Mat Min Exi Total 3235 | 91 445 519 1530 265 385 Wait 289 | 13 36 28 210 2 . Move 2539 | 59 307 446 1149 242 336 Hop . | . . . . . . Pick Up 45 | 3 14 3 21 . 4 Fast Attach 23 | 7 3 2 10 1 . Attach 14 | . 3 2 4 . 5 Detach 1 | . 1 . . . . Swap 32 | . 7 5 12 4 4 Drop 48 | . 5 6 30 1 6 Fire 216 | 9 69 27 93 15 3 Melee 27 | . . . . . 27 Ram . | . . . . . . Kick 1 | . . . 1 . . Crush . | . . . . . . Escape Stasis . | . . . . . . Rewire . | . . . . . . Trap . | . . . . . . Miscellaneous . | . . . . . . Route ------- -11/Scrapyard -10/Materials (discovered 2 exits: *Mat / [*Min]) -10/Mines (discovered 2 exits: *Mat / [*Sub]) -9/Materials (discovered 4 exits: *Mat x3 / *Min) -9/Mines (discovered 4 exits: *Mat x2 / *Exi / [*Zio]) -9/Exiles (discovered 1 exit: [*Min]) History --------- Turn | Location | Event 6 | -11/Scrapyard | Discovered new exit (range 16) 117 | -11/Scrapyard | Entered Materials 312 | -10/Materials | Build established: Mutant 377 | -10/Materials | Discovered new exit (range 4) 580 | -10/Materials | Core integrity fell below 50% 627 | -10/Materials | Discovered new exit (range 14) 703 | -10/Materials | Central database locked down 837 | -10/Materials | Repaired Seismic Detector 903 | -10/Materials | Entered Mines 953 | -10/Mines | Found a damaged Exp. Sensor Array with a note attached 959 | -10/Mines | Found Prototype Device 1131 | -10/Mines | Build established: Scavenger-Mutant 1199 | -10/Mines | Learned location of 1 exit from Materials 1427 | -10/Mines | Core integrity fell below 20% 1518 | -10/Mines | Discovered new exit (range 9) 1820 | -10/Mines | Discovered new exit (range 14) 1873 | -10/Mines | Entered Materials 1873 | -9/Materials | Evolved 2 slots: Propulsion x1, Utility x1 1874 | -9/Materials | Identified exit to Materials 2214 | -9/Materials | Identified exit to Mines 2299 | -9/Materials | Identified Exp. Sensor Array 3117 | -9/Materials | Build established: Mutant 3237 | -9/Materials | Repaired Broken Exp. Sensor Array 3410 | -9/Materials | Discovered exit to Materials (range 3) 3671 | -9/Materials | Build established: Scavenger-Mutant 3941 | -9/Materials | Learned location of Zion (-7) 3974 | -9/Materials | Discovered exit to Materials (range 7) 3986 | -9/Materials | Learned 2 Storage zone layouts 4023 | -9/Materials | Learned Storage security intel 4072 | -9/Materials | Loaded intel: 19 trap records 4191 | -9/Materials | Central database locked down 4531 | -9/Materials | Build established: Mutant 4612 | -9/Materials | Entered Mines 4642 | -9/Mines | A Derelict revealed a hidden shortcut to a safe place 4700 | -9/Mines | Discovered exit to Materials (range 13) 4882 | -9/Mines | Discovered exit to Materials (range 9) 5051 | -9/Mines | Assembled infested the area 5054 | -9/Mines | Deemed a non-threat by the Exiles lab entrance 5056 | -9/Mines | Discovered new exit (range 5) 5063 | -9/Mines | Entered Exiles 5093 | -9/Exiles | Discovered new exit (range 15) 5120 | -9/Exiles | Met 8R-AWN 5146 | -9/Exiles | Met EX-HEX 5181 | -9/Exiles | Build established: Scavenger-Mutant 5217 | -9/Exiles | Met EX-DEC 5298 | -9/Exiles | Met EX-BIN 5327 | -9/Exiles | Aligned with FarCom system 5329 | -9/Exiles | Given EX-Vault access code 5372 | -9/Exiles | Opened EX-Vault 5387 | -9/Exiles | Found Gui. Plasma Cannon 5426 | -9/Exiles | Warned to stay clear of 0b10 Research branches 5710 | -9/Exiles | Attacked by the Exiles 5735 | -9/Exiles | Murdered 3 allies 5757 | -9/Exiles | Core integrity fell below 50% 5778 | -9/Exiles | Core integrity fell below 20% 5797 | -9/Exiles | Destroyed by 8R-AWN with 8R-AWN's Boregun Last Messages --------------- 05757_ Scythe follow-up attack on 8R-AWN. 05759_ Penetrated by HV Slug. 05759_ Critical hit (Destroy). 05759_ Lgt. Treads destroyed. 05759_ HV Slug penetrates Wall. 05760_ 8R-AWN Prototype Leg severed. 05761_ Penetrated by HV Slug. 05769_ The unstable cave ceiling collapses. 05770_ HV Slug penetrates Wall. 05770_ Penetrated by HV Slug. 05774_ HV Slug penetrates Wall. 05775_ Scythe follow-up attack on 8R-AWN. 05777_ Penetrated by HV Slug. 05777_ Critical hit (Destroy). 05777_ Scythe destroyed. 05777_ Penetrated by HV Slug. 05781_ HV Slug penetrates Wall. 05781_ Penetrated by HV Slug. 05795_ Destroyed Prototype Protection. 05797_ Penetrated by HV Slug. Map ----- +----------------------------------------------------+ | """#?????????????????????????????????????? | | """#?????????????????????????????????????? | | """"?????????????????????????????????????? | | """#?????????????????????????????????????? | | "X" """"?????????????????????????????????????? | | """ #?????????????????????????????????????? | | """""""""#?????????????????????????????????????? | | ###########?????????????????????????????????????? | | #???????????????????????????????????????????????? | | #???????????????????????????????????????????????? | | ##??????????????????????????????????????????????? | | ##???#########?????????????????????????????????? | | #####"""" """"##??????????????????????????????? | | " """ """"##?????????????????????????????? | | "" " #?????????????????????????????? | | " """#?????????????????????????????? | | a"#???????????#####?????????????? | | " "##?????????##" #?????????????? | | "###???????#" #?????????????# | | ""#??????##" ##????????????# | | " "#?#?#### ###????????### | | ##""" !## # # ########## | | ?##""" !## ## #""""## | | ??#"""" !#;# * | | ?##"" ## * | | ##"""" @ #### | | "" g ""#?#"""""#### | | #"""##?#######??#### | | ######??????????????##### | | ##???????????????????????# | | " ##????????????????????????? | | "" """ #?????????????????????????? | | #""" " " ""# #?????????????????????????? | | #####""" """##" #??????????????????????????? | | ????###""""#### ## ???????????????????????????? | | ###???######??###?####???????????????????????????? | | "!#??????????????????????????????????????????????? | | !#??????????????????????????????????????????????? | | "#??????????????????????????????????????????????? | | !"#??????????????????????????????????????????????? | | ###??????????????????????????????????????????????? | | ?????????????????????????????????????????????????? | | ?????????????????????????????????????????????????? | | ?????????????????????????????????????????????????? | | ?????????????????????????????????????????????????? | | ?????????????????????????????????????????????????? | | ?????????????????????????????????????????????????? | | ?????????????????????????????????????????????????? | | ?????????????????????????????????????????????????? | | ?????????????????????????????????????????????????? | +----------------------------------------------------+ Best States ------------- Heat Dissipation 50 Energy Generation 14 Energy Capacity 280 Matter Stores 300 Matter Capacity 300 Sight Range 16 Terrain Scan Density 10 Armor Coverage 375 Evasion (%) 55 Recoil Reduction 1 Offensive Hacking 10 Item Schematics ----------------- Huge Storage Unit | -10/Materials | Hacked Hcp. Storage Unit | -10/Materials | Hacked Hrd. Light Armor Plating | -9/Materials | Hacked Robot Schematics ------------------ M-13 Machinist | -10/Materials | Hacked Fabricated ------------ Nothing Repaired ---------- Seismic Detector | 10% | -10/Materials Exp. Sensor Array | 62% | -9/Materials | Broken Alien Tech Used ----------------- None Achievements -------------- None Challenges ------------ None Game ------ Seed CoreFlakNanovents Manual? 0 Play Time 00:37:55 Cumulative 761.2 hours Start 2025.08.04 @ 09:40:04 End 2025.08.04 @ 10:17:39 Sessions 1 Manual Loads 0 Difficulty Rogue Special Mode None Game No. 291 Rogue 287 Adventurer 4 Explorer 0 Win Type - Total 12 Types 7/1/1/1/0/1/0/0/0/1 Lore% 94 Gallery% 89 Achievement% 87 Wizard Run 0 Options --------- Layout 0 ASCII 0 Keyboard 0 Movement Numpad Keybinds 0 Fullscreen 2 Font 18/CogNarrow Map View 76x50 Zoom Use 0% Tactical HUD 1 Map Filters NONE Filters NONE Steam 1 RUN: 19a6f13c-3e8f-42bb-868e-c92e6a54d32a